[Event "DVM U14 2021"]
[Site "Willingen"]
[Date "2022.08.13"]
[Round "2"]
[White "Fuhrmann, Bahne"]
[Black "Sidletskyi, Ivan"]
[Result "1-0"]
[ECO "E05"]
[WhiteElo "1973"]
[BlackElo "2075"]
[Annotator "NA RC"]
[PlyCount "77"]
[EventDate "2022.08.12"]
[EventType "team-tourn"]
[EventRounds "7"]
[EventCountry "GER"]
[SourceTitle "playchess.com"]
[Source "ChessBase"]
[SourceQuality "1"]
[TimeControl "40/5400+30:1800+30"]

1. d4 {[%emt 0:02:00]} e6 {[%emt 0:00:00]} 2. c4 {[%emt 0:00:47]} Nf6 {[%emt 0:00:00]} 3. g3 {[%emt 0:01:44]} d5 {[%emt 0:00:00]} 4. Bg2 {[%emt 0:00:54]} Be7 {[%emt 0:00:02]} 5. Nf3 {[%emt 0:00:11]} O-O {[%emt 0:00:04]} 6. O-O {[%emt 0:01:06]} dxc4 {[%emt 0:00:04]} 7. Qc2 {[%emt 0:07:34]} a6 {[%emt 0:00:14]} 8. a4 {[%emt 0:00:52]} Bd7 {[%emt 0:00:07]} 9. Rd1 {[%emt 0:06:01]} Bc6 $11 {[%emt 0:01:42]} 10. Nc3 {[%emt 0:14:28]} Nd5 {[%emt 0:01:42]} 11. e4 {[%emt 0:07:27]} Nb4 {[%emt 0:00:06]} 12. Qe2 {[%emt 0:01:09]} Nd3 {[%emt 0:01:32]} 13. b3 {[%emt 0:00:47]} Nxc1 {[%emt 0:00:47]} 14. Raxc1 {[%emt 0:04:06]} cxb3 {[%emt 0:17:00]} 15. Qc4 {[%emt 0:03:02]} b5 {[%emt 0:00:26]} 16. Qxb3 {[%emt 0:01:23]} bxa4 {[%emt 0:04:01]} 17. Qa2 {[%emt 0:04:58]} a3 {[%emt 0:06:30]} 18. Ne5 {[%emt 0:03:06]} Bb7 {[%emt 0:04:54]} 19. d5 {[%emt 0:01:18]} exd5 {[%emt 0:03:46]} 20. Nxd5 {[%emt 0:01:02]} Bxd5 {[%emt 0:02:44]} 21. Rxd5 {[%emt 0:07:32]} Qc8 {[%emt 0:02:43]} 22. Bf1 {[%emt 0:05:05]} c6 {[%emt 0:06:10]} 23. Nxf7 {[%emt 0:05:49]} Rxf7 {[%emt 0:00:16]} 24. Rf5 {[%emt 0:03:20]} Bf6 {[%emt 0:00:07]} 25. Bc4 {[%emt 0:02:14]} Raa7 {[%emt 0:05:21]} 26. Be6 {[%emt 0:05:25]} Qe8 {[%emt 0:02:11]} 27. e5 {[%emt 0:04:11]} Bd8 {[%emt 0:01:44]} 28. Rb1 {[%emt 0:02:10]} Kf8 {[%emt 0:02:34]} 29. Bxf7 {[%emt 0:00:20]} Rxf7 {[%emt 0:00:27]} 30. Rxf7+ {[%emt 0:00:06]} Qxf7 {[%emt 0:00:05]} 31. Qxa3+ {[%emt 0:01:50]} Qe7 {[%emt 0:00:29]} 32. Qf3+ {[%emt 0:00:26]} Qf7 {[%emt 0:01:00]} 33. Qxf7+ {[%emt 0:00:04]} Kxf7 {[%emt 0:00:08]} 34. Rxb8 {[%emt 0:00:23]} Ke7 {[%emt 0:01:20]} 35. f4 {[%emt 0:00:45]} g6 {[%emt 0:00:48]} 36. Kf2 {[%emt 0:00:21]} Bc7 {[%emt 0:00:51]} 37. Rb7 {[%emt 0:00:07]} Kd7 {[%emt 0:00:19]} 38. e6+ {[%emt 0:01:20]} Kc8 {[%emt 0:00:19]} 39. e7 1-0

[Event "DVM U14 2021"]
[Site "Willingen"]
[Date "2022.08.13"]
[Round "2"]
[White "Malinowsky, Levi"]
[Black "Isbilir, Levin"]
[Result "1-0"]
[ECO "B51"]
[WhiteElo "1814"]
[BlackElo "1629"]
[Annotator "NA RC COMBH"]
[PlyCount "63"]
[EventDate "2022.08.12"]
[EventType "team-tourn"]
[EventRounds "7"]
[EventCountry "GER"]
[SourceTitle "playchess.com"]
[Source "ChessBase"]
[SourceQuality "1"]
[TimeControl "40/5400+30:1800+30"]

1. e4 {[%emt 0:00:06]} c5 {[%emt 0:00:00]} 2. Nf3 {[%emt 0:00:11]} Nc6 {[%emt 0:00:30]} 3. Bb5 {[%emt 0:00:30]} d6 {[%emt 0:01:09]} 4. O-O {[%emt 0:00:19]} Bd7 {[%emt 0:01:23]} 5. c3 {[%emt 0:00:35]} a6 {[%emt 0:00:08]} 6. Ba4 {[%emt 0:01:07]} Nf6 {[%emt 0:00:51]} 7. Re1 {[%emt 0:00:41]} b5 {[%emt 0:00:52]} 8. Bc2 {[%emt 0:01:14]} e5 {[%emt 0:04:39]} 9. h3 {[%emt 0:04:48]} Be7 {[%emt 0:01:30]} 10. d4 {[%emt 0:03:16]} cxd4 {[%emt 0:00:14]} 11. cxd4 {[%emt 0:03:12]} exd4 {[%emt 0:01:12]} 12. Nxd4 {[%emt 0:00:58]} Nxd4 {[%emt 0:00:23]} 13. Qxd4 {[%emt 0:00:48]} Rc8 {[%emt 0:02:21]} 14. Nc3 {[%emt 0:06:12]} Be6 {[%emt 0:06:45]} 15. Bf4 {[%emt 0:12:26]} O-O {[%emt 0:05:08]} 16. Rad1 {[%emt 0:19:08]} Bxa2 {[%emt 0:09:08]} 17. e5 {[%emt 0:08:21]} Nh5 {[%emt 0:04:36]} 18. Qe4 {[%emt 0:06:06]} g6 {[%emt 0:01:51]} 19. Bh6 {[%emt 0:09:36]} d5 {[%emt 0:03:48]} 20. Nxd5 {[%emt 0:01:32]} Bxd5 {[%emt 0:00:52]} 21. Rxd5 {[%emt 0:03:56]} Qa5 {[%emt 0:02:30]} 22. Bxf8 {[%emt 0:04:26]} Rc4 {[%emt 0:02:17]} 23. Bxe7 {[%emt 0:01:29]} Rxe4 {[%emt 0:00:17]} 24. Rxe4 {[%emt 0:01:36]} h6 {[%emt 0:01:37]} 25. Bf6 {[%emt 0:01:23]} Nxf6 {[%emt 0:01:05]} 26. exf6 {[%emt 0:02:38]} Qa1+ {[%emt 0:00:29]} 27. Kh2 {[%emt 0:00:32]} Qc1 {[%emt 0:01:43]} 28. Rd8+ {[%emt 0:00:07]} Kh7 {[%emt 0:00:18]} 29. Ree8 {[%emt 0:00:34]} Qf4+ {[%emt 0:00:18]} 30. Kg1 {[%emt 0:00:10]} Qc1+ {[%emt 0:00:07]} 31. Bd1 {[%emt 0:00:17]} g5 {[%emt 0:00:17]} 32. Rg8 {[%emt 0:00:44]} 1-0

[Event "DVM U14 2021"]
[Site "Willingen"]
[Date "2022.08.13"]
[Round "2"]
[White "Braeutigam, Alexander"]
[Black "Martin Fernandez, Rafael"]
[Result "1-0"]
[ECO "A57"]
[WhiteElo "1771"]
[BlackElo "1645"]
[Annotator "NA RC COMBH"]
[PlyCount "105"]
[EventDate "2022.08.12"]
[EventType "team-tourn"]
[EventRounds "7"]
[EventCountry "GER"]
[SourceTitle "playchess.com"]
[Source "ChessBase"]
[SourceQuality "1"]
[TimeControl "40/5400+30:1800+30"]

1. d4 {[%emt 0:00:30]} Nf6 {[%emt 0:00:00]} 2. c4 {[%emt 0:00:15]} c5 {[%emt 0:00:00]} 3. d5 {[%emt 0:00:09]} b5 {[%emt 0:00:00]} 4. cxb5 {[%emt 0:00:13]} a6 {[%emt 0:00:01]} 5. b6 {[%emt 0:01:02]} g6 {[%emt 0:00:13]} 6. Nc3 {[%emt 0:01:23]} Bg7 {[%emt 0:00:17]} 7. e4 {[%emt 0:00:19]} d6 {[%emt 0:01:11]} 8. Qb3 {[%emt 0:01:05]} Bb7 {[%emt 0:00:14]} 9. a4 {[%emt 0:03:17]} a5 {[%emt 0:02:14]} 10. Nb5 {[%emt 0:01:37]} Na6 {[%emt 0:03:53]} 11. f3 {[%emt 0:00:34]} O-O {[%emt 0:00:32]} 12. Bc4 {[%emt 0:01:29]} Nd7 {[%emt 0:00:21]} 13. Bd2 {[%emt 0:01:38]} Qxb6 {[%emt 0:00:41]} 14. Ne2 {[%emt 0:02:04]} Ne5 {[%emt 0:00:44]} 15. Bc3 {[%emt 0:01:34]} Nb4 {[%emt 0:01:10]} 16. O-O {[%emt 0:01:33]} Ba6 {[%emt 0:03:48]} 17. Bxe5 {[%emt 0:01:02]} Bxe5 {[%emt 0:00:33]} 18. Kh1 {[%emt 0:01:33]} Bxb5 {[%emt 0:02:50]} 19. axb5 {[%emt 0:04:43]} Qa7 {[%emt 0:00:27]} 20. Nc3 {[%emt 0:04:53]} Bg7 {[%emt 0:02:17]} 21. Na4 {[%emt 0:03:46]} f5 {[%emt 0:07:15]} 22. g3 {[%emt 0:02:04]} Kh8 {[%emt 0:02:39]} 23. Rae1 {[%emt 0:02:08]} f4 {[%emt 0:03:20]} 24. Kg2 {[%emt 0:03:04]} Rab8 {[%emt 0:04:38]} 25. Qd1 {[%emt 0:01:33]} Qd7 {[%emt 0:01:58]} 26. Qd2 {[%emt 0:01:42]} g5 {[%emt 0:02:41]} 27. g4 {[%emt 0:02:06]} Bd4 {[%emt 0:00:50]} 28. Rh1 {[%emt 0:04:34]} h5 {[%emt 0:01:12]} 29. h4 {[%emt 0:00:08]} hxg4 {[%emt 0:00:06]} 30. hxg5+ {[%emt 0:00:10]} Kg7 {[%emt 0:02:37]} 31. Rh4 {[%emt 0:01:00]} gxf3+ {[%emt 0:00:10]} 32. Kxf3 {[%emt 0:02:34]} Rh8 {[%emt 0:00:09]} 33. Reh1 {[%emt 0:04:32]} Rxh4 {[%emt 0:00:05]} 34. Rxh4 {[%emt 0:00:15]} Rh8 {[%emt 0:00:16]} 35. Rxh8 {[%emt 0:00:07]} Kxh8 {[%emt 0:00:04]} 36. Qh2+ {[%emt 0:00:14]} Kg8 {[%emt 0:00:21]} 37. g6 {[%emt 0:00:14]} Bg7 {[%emt 0:00:59]} 38. Qh7+ {[%emt 0:00:08]} Kf8 {[%emt 0:00:40]} 39. Kxf4 {[%emt 0:03:20]} Nc2 {[%emt 0:03:11]} 40. Qh5 {[%emt 0:00:14]} Be5+ {[%emt 0:01:03]} 41. Kf3 {[%emt 0:30:18]} Nd4+ {[%emt 0:31:53]} 42. Ke3 {[%emt 0:06:49]} Qd8 {[%emt 0:10:32]} 43. Qg4 {[%emt 0:03:58]} Bf6 {[%emt 0:00:30]} 44. b6 {[%emt 0:04:32]} Nc2+ {[%emt 0:00:34]} 45. Kd2 {[%emt 0:00:55]} Nd4 {[%emt 0:00:24]} 46. b7 {[%emt 0:01:54]} e6 {[%emt 0:01:10]} 47. dxe6 {[%emt 0:01:27]} d5 {[%emt 0:01:37]} 48. g7+ {[%emt 0:00:13]} Kg8 {[%emt 0:00:32]} 49. e7 {[%emt 0:01:57]} Bxe7 {[%emt 0:00:10]} 50. Bxd5+ {[%emt 0:00:15]} Ne6 {[%emt 0:00:22]} 51. b8=Q {[%emt 0:00:23]} Qxb8 {[%emt 0:00:06]} 52. Bxe6+ {[%emt 0:00:09]} Kh7 {[%emt 0:00:39]} 53. g8=Q+ {[%emt 0:00:43]} 1-0

[Event "DVM U14 2021"]
[Site "Willingen"]
[Date "2022.08.13"]
[Round "2"]
[White "Nitsche, Nikolai"]
[Black "Hoffmann, Kay"]
[Result "1-0"]
[ECO "A04"]
[WhiteElo "1764"]
[BlackElo "1653"]
[Annotator "NA RC COMBH"]
[PlyCount "57"]
[EventDate "2022.08.12"]
[EventType "team-tourn"]
[EventRounds "7"]
[EventCountry "GER"]
[SourceTitle "playchess.com"]
[Source "ChessBase"]
[SourceQuality "1"]
[TimeControl "40/5400+30:1800+30"]

1. Nf3 {[%emt 0:00:08]} g6 {[%emt 0:00:07]} 2. g3 {[%emt 0:00:05]} Bg7 {[%emt 0:00:05]} 3. Bg2 {[%emt 0:00:03]} e5 {[%emt 0:00:35]} 4. O-O {[%emt 0:00:43]} Nc6 {[%emt 0:00:09]} 5. e4 {[%emt 0:01:37]} Nge7 {[%emt 0:00:09]} 6. Nc3 {[%emt 0:00:17]} O-O {[%emt 0:00:13]} 7. d3 {[%emt 0:02:36]} d6 {[%emt 0:00:14]} 8. Nh4 {[%emt 0:00:52]} Be6 {[%emt 0:01:21]} 9. f4 {[%emt 0:00:46]} f5 {[%emt 0:00:47]} 10. Be3 {[%emt 0:03:06]} h6 {[%emt 0:04:05]} 11. Qd2 {[%emt 0:05:16]} Kh7 {[%emt 0:00:26]} 12. Rae1 {[%emt 0:04:42]} Qd7 {[%emt 0:03:08]} 13. h3 {[%emt 0:12:46]} fxe4 {[%emt 0:04:11]} 14. dxe4 {[%emt 0:10:52]} exf4 {[%emt 0:03:34]} 15. gxf4 {[%emt 0:03:20]} Bxh3 {[%emt 0:01:10]} 16. Rf3 {[%emt 0:10:03]} Bg4 {[%emt 0:02:44]} 17. Rg3 {[%emt 0:01:05]} Bf6 {[%emt 0:00:59]} 18. Nf3 {[%emt 0:00:35]} h5 {[%emt 0:00:31]} 19. e5 {[%emt 0:12:31]} dxe5 {[%emt 0:00:40]} 20. Qxd7 {[%emt 0:00:12]} Bxd7 {[%emt 0:00:05]} 21. fxe5 {[%emt 0:00:06]} Nxe5 {[%emt 0:00:35]} 22. Bc5 {[%emt 0:04:00]} Rfe8 {[%emt 0:22:43]} 23. Nxe5 {[%emt 0:01:52]} Nf5 {[%emt 0:01:06]} 24. Rd3 {[%emt 0:00:38]} Bxe5 {[%emt 0:02:10]} 25. Rxd7+ {[%emt 0:00:54]} Kh6 {[%emt 0:01:08]} 26. Red1 {[%emt 0:04:39]} b6 {[%emt 0:02:55]} 27. Bxa8 {[%emt 0:01:14]} bxc5 {[%emt 0:00:31]} 28. Bc6 {[%emt 0:01:29]} Bd4+ {[%emt 0:00:07]} 29. R7xd4 {[%emt 0:00:09]} 1-0

[Event "DVM U14 2021"]
[Site "Willingen"]
[Date "2022.08.13"]
[Round "2"]
[White "Bongardt, Livius"]
[Black "Apel, Linus"]
[Result "1-0"]
[ECO "C65"]
[WhiteElo "1756"]
[BlackElo "1488"]
[Annotator "NA RC COMBH"]
[PlyCount "85"]
[EventDate "2022.08.12"]
[EventType "team-tourn"]
[EventRounds "7"]
[EventCountry "GER"]
[SourceTitle "playchess.com"]
[Source "ChessBase"]
[SourceQuality "1"]
[TimeControl "40/5400+30:1800+30"]

1. e4 {[%emt 0:00:06]} e5 {[%emt 0:00:00]} 2. Nf3 {[%emt 0:00:08]} Nc6 {[%emt 0:00:00]} 3. Bb5 {[%emt 0:00:22]} Nf6 {[%emt 0:00:38]} 4. d3 {[%emt 0:00:56]} Bc5 {[%emt 0:00:13]} 5. O-O {[%emt 0:01:13]} d6 {[%emt 0:00:37]} 6. c3 {[%emt 0:00:23]} O-O {[%emt 0:02:41]} 7. Nbd2 {[%emt 0:01:05]} Bg4 {[%emt 0:00:36]} 8. Re1 {[%emt 0:00:58]} a6 {[%emt 0:00:06]} 9. Ba4 {[%emt 0:00:27]} b5 {[%emt 0:08:44]} 10. Bb3 {[%emt 0:01:04]} Re8 {[%emt 0:07:16]} 11. h3 {[%emt 0:00:40]} Bh5 {[%emt 0:03:33]} 12. Nf1 {[%emt 0:06:52]} d5 {[%emt 0:00:37]} 13. Qe2 {[%emt 0:02:13]} d4 {[%emt 0:25:31]} 14. Ng3 {[%emt 0:03:10]} Bg6 {[%emt 0:21:32]} 15. Nh4 {[%emt 0:10:32]} Rb8 {[%emt 0:06:32]} 16. Nhf5 {[%emt 0:14:25]} Nd7 {[%emt 0:09:18]} 17. h4 {[%emt 0:05:50]} Bxf5 {[%emt 0:01:27]} 18. Nxf5 {[%emt 0:01:59]} Nf6 {[%emt 0:03:16]} 19. Qf3 {[%emt 0:03:31]} Ne7 {[%emt 0:02:19]} 20. Nh6+ {[%emt 0:01:32]} Kf8 {[%emt 0:01:29]} 21. Bxf7 {[%emt 0:02:02]} Ng6 {[%emt 0:01:28]} 22. Bxe8 {[%emt 0:00:19]} Qxe8 {[%emt 0:02:03]} 23. Bg5 {[%emt 0:00:41]} Rb6 {[%emt 0:00:59]} 24. Nf5 {[%emt 0:00:42]} Kg8 {[%emt 0:00:54]} 25. b4 {[%emt 0:00:50]} Bf8 {[%emt 0:00:20]} 26. cxd4 {[%emt 0:00:13]} exd4 {[%emt 0:00:23]} 27. Rec1 {[%emt 0:03:26]} Qd7 {[%emt 0:00:22]} 28. a3 {[%emt 0:01:03]} Re6 {[%emt 0:00:54]} 29. Rc2 {[%emt 0:00:21]} c6 {[%emt 0:00:20]} 30. Rac1 {[%emt 0:01:20]} Be7 {[%emt 0:00:32]} 31. g4 {[%emt 0:01:01]} h6 {[%emt 0:00:36]} 32. Bf4 {[%emt 0:01:37]} Kf7 {[%emt 0:00:36]} 33. g5 {[%emt 0:00:40]} hxg5 {[%emt 0:00:17]} 34. hxg5 {[%emt 0:00:48]} Nh7 {[%emt 0:00:50]} 35. Qg3 {[%emt 0:00:28]} Nxf4 {[%emt 0:00:22]} 36. Qxf4 {[%emt 0:00:18]} Bxg5 {[%emt 0:00:34]} 37. Nh6+ {[%emt 0:02:51]} Ke8 {[%emt 0:00:31]} 38. Qb8+ {[%emt 0:01:23]} Ke7 {[%emt 0:00:20]} 39. Nf5+ {[%emt 0:00:18]} Kf7 {[%emt 0:00:28]} 40. Rf1 {[%emt 0:00:21]} Rg6 {[%emt 0:00:45]} 41. Kh1 {[%emt 0:33:06]} Bd8 {[%emt 0:01:01]} 42. f4 {[%emt 0:00:00]} Nf6 {[%emt 0:12:31]} 43. Qd6 {[%emt 0:00:00]} 1-0

[Event "DVM U14 2021"]
[Site "Willingen"]
[Date "2022.08.13"]
[Round "2"]
[White "Malan, Jan-Willem"]
[Black "Borgert, Alexander"]
[Result "0-1"]
[ECO "A25"]
[WhiteElo "1747"]
[BlackElo "1477"]
[Annotator "NA RC COMBH"]
[PlyCount "46"]
[EventDate "2022.08.12"]
[EventType "team-tourn"]
[EventRounds "7"]
[EventCountry "GER"]
[SourceTitle "playchess.com"]
[Source "ChessBase"]
[SourceQuality "1"]
[TimeControl "40/5400+30:1800+30"]

1. c4 {[%emt 0:00:38]} e5 {[%emt 0:00:06]} 2. g3 {[%emt 0:00:22]} Nc6 {[%emt 0:00:06]} 3. Bg2 {[%emt 0:00:12]} Bc5 {[%emt 0:00:07]} 4. Nc3 {[%emt 0:00:33]} d6 {[%emt 0:00:09]} 5. e3 {[%emt 0:00:12]} a6 {[%emt 0:00:07]} 6. Nge2 {[%emt 0:00:25]} Ba7 {[%emt 0:00:08]} 7. O-O {[%emt 0:00:26]} h5 {[%emt 0:00:06]} 8. d4 {[%emt 0:00:33]} h4 {[%emt 0:00:56]} 9. dxe5 {[%emt 0:02:24]} Nxe5 {[%emt 0:00:15]} 10. Qa4+ {[%emt 0:00:41]} Bd7 {[%emt 0:00:18]} 11. Qb3 {[%emt 0:00:39]} Rb8 {[%emt 0:03:30]} 12. Nf4 {[%emt 0:01:07]} g5 {[%emt 0:11:19]} 13. Nfe2 {[%emt 0:00:54]} h3 {[%emt 0:01:10]} 14. Bh1 {[%emt 0:01:12]} Qf6 {[%emt 0:06:50]} 15. Rd1 {[%emt 0:02:01]} Nf3+ {[%emt 0:00:37]} 16. Kf1 {[%emt 0:01:08]} Nxh2+ {[%emt 0:00:24]} 17. Kg1 {[%emt 0:00:42]} Nf3+ {[%emt 0:00:14]} 18. Kf1 {[%emt 0:00:11]} h2 {[%emt 0:00:05]} 19. Nd5 {[%emt 0:01:35]} Bh3+ {[%emt 0:00:14]} 20. Bg2 {[%emt 0:01:32]} h1=Q+ {[%emt 0:00:08]} 21. Ng1 {[%emt 0:00:10]} Qxg2+ {[%emt 0:00:10]} 22. Ke2 {[%emt 0:00:21]} Nxg1+ {[%emt 0:00:11]} 23. Ke1 {[%emt 0:01:41]} Qfxf2# {[%emt 0:00:12]} 0-1

[Event "DVM U14 2021"]
[Site "Willingen"]
[Date "2022.08.13"]
[Round "2"]
[White "Tomasjan, Samuel"]
[Black "Goldinov, Daniel"]
[Result "1-0"]
[ECO "B13"]
[WhiteElo "1741"]
[BlackElo "1546"]
[Annotator "NA RC COMBH"]
[PlyCount "31"]
[EventDate "2022.08.12"]
[EventType "team-tourn"]
[EventRounds "7"]
[EventCountry "GER"]
[SourceTitle "playchess.com"]
[Source "ChessBase"]
[SourceQuality "1"]
[TimeControl "40/5400+30:1800+30"]

1. e4 {[%emt 0:00:01]} c6 {[%emt 0:00:03]} 2. d4 {[%emt 0:00:06]} d5 {[%emt 0:00:03]} 3. exd5 {[%emt 0:00:04]} cxd5 {[%emt 0:00:05]} 4. c4 {[%emt 0:00:03]} Nf6 {[%emt 0:00:10]} 5. Nc3 {[%emt 0:00:05]} Nc6 {[%emt 0:00:29]} 6. Bg5 {[%emt 0:00:08]} dxc4 {[%emt 0:23:01]} 7. Bxc4 {[%emt 0:01:01]} Nxd4 {[%emt 0:07:08]} 8. Nge2 {[%emt 0:08:12]} Nxe2 {[%emt 0:07:31]} 9. Bxf7+ {[%emt 0:00:19]} Kxf7 {[%emt 0:01:41]} 10. Qxd8 {[%emt 0:00:17]} Nxc3 {[%emt 0:03:08]} 11. bxc3 {[%emt 0:00:31]} g6 {[%emt 0:03:25]} 12. Bxf6 {[%emt 0:02:06]} exf6 {[%emt 0:00:37]} 13. Qc7+ {[%emt 0:00:35]} Be7 {[%emt 0:00:42]} 14. O-O {[%emt 0:00:11]} b6 {[%emt 0:01:14]} 15. Rfe1 {[%emt 0:00:23]} Re8 {[%emt 0:00:06]} 16. Re3 {[%emt 0:00:29]} 1-0

[Event "DVM U14 2021"]
[Site "Willingen"]
[Date "2022.08.13"]
[Round "2"]
[White "Schoen, Florian"]
[Black "Bezsonna, Polina"]
[Result "0-1"]
[ECO "B23"]
[WhiteElo "1688"]
[BlackElo "1631"]
[Annotator "NA RC COMBH"]
[PlyCount "84"]
[EventDate "2022.08.12"]
[EventType "team-tourn"]
[EventRounds "7"]
[EventCountry "GER"]
[SourceTitle "playchess.com"]
[Source "ChessBase"]
[SourceQuality "1"]
[TimeControl "40/5400+30:1800+30"]

1. e4 {[%emt 0:00:01]} c5 {[%emt 0:00:06]} 2. Nc3 {[%emt 0:00:04]} Nc6 {[%emt 0:00:08]} 3. f4 {[%emt 0:00:04]} g6 {[%emt 0:00:16]} 4. Nf3 {[%emt 0:00:13]} Bg7 {[%emt 0:00:38]} 5. Bb5 {[%emt 0:00:15]} Nd4 {[%emt 0:00:31]} 6. Nxd4 {[%emt 0:00:24]} cxd4 {[%emt 0:00:08]} 7. Ne2 {[%emt 0:00:03]} b6 {[%emt 0:02:27]} 8. O-O {[%emt 0:04:01]} e6 {[%emt 0:03:51]} 9. c3 {[%emt 0:06:28]} dxc3 {[%emt 0:00:31]} 10. bxc3 {[%emt 0:00:19]} Bb7 {[%emt 0:00:55]} 11. Qc2 {[%emt 0:01:16]} Ne7 {[%emt 0:03:55]} 12. d4 {[%emt 0:01:09]} O-O {[%emt 0:01:37]} 13. Ba3 {[%emt 0:00:50]} a6 {[%emt 0:02:52]} 14. Bxe7 {[%emt 0:02:05]} Qxe7 {[%emt 0:00:10]} 15. Bd3 {[%emt 0:00:06]} Rfc8 {[%emt 0:02:58]} 16. Rab1 {[%emt 0:02:33]} Qd8 {[%emt 0:17:10]} 17. Qb3 {[%emt 0:11:23]} b5 {[%emt 0:05:02]} 18. Rf2 {[%emt 0:10:54]} Rab8 {[%emt 0:04:26]} 19. Rbf1 {[%emt 0:02:10]} f5 {[%emt 0:01:12]} 20. exf5 {[%emt 0:00:31]} Bd5 {[%emt 0:00:17]} 21. Qa3 {[%emt 0:02:12]} exf5 {[%emt 0:00:47]} 22. Qxa6 {[%emt 0:00:42]} Bf8 {[%emt 0:05:49]} 23. a4 {[%emt 0:12:12]} Rb6 {[%emt 0:06:00]} 24. Qa5 {[%emt 0:10:42]} Ra8 {[%emt 0:00:33]} 25. Qxa8 {[%emt 0:00:18]} Qxa8 {[%emt 0:00:22]} 26. Bxb5 {[%emt 0:03:12]} Bc6 {[%emt 0:02:41]} 27. c4 {[%emt 0:00:29]} Bxb5 {[%emt 0:01:03]} 28. axb5 {[%emt 0:00:05]} d5 {[%emt 0:03:26]} 29. c5 {[%emt 0:02:20]} Rxb5 {[%emt 0:00:15]} 30. Nc3 {[%emt 0:00:08]} Rb4 {[%emt 0:01:21]} 31. Ra2 {[%emt 0:01:05]} Qc6 {[%emt 0:00:56]} 32. Ne2 {[%emt 0:01:49]} Bg7 {[%emt 0:05:22]} 33. Rd1 {[%emt 0:02:17]} Qb7 {[%emt 0:03:16]} 34. Rdd2 {[%emt 0:02:10]} h6 {[%emt 0:02:08]} 35. Kf2 {[%emt 0:00:26]} Rb3 {[%emt 0:01:16]} 36. Nc1 {[%emt 0:01:54]} Rb4 {[%emt 0:01:24]} 37. Ne2 {[%emt 0:00:56]} Qb8 {[%emt 0:01:12]} 38. h3 {[%emt 0:04:35]} Rb3 {[%emt 0:03:48]} 39. Kf1 {[%emt 0:06:22]} g5 {[%emt 0:01:54]} 40. Kf2 {[%emt 0:02:32]} Qe8 {[%emt 0:01:41]} 41. Rab2 {[%emt 0:33:45]} Qe3+ {[%emt 0:32:48]} 42. Kf1 {[%emt 0:00:44]} Bxd4 {[%emt 0:02:40]} 0-1

[Event "DVM U14 2021"]
[Site "Willingen"]
[Date "2022.08.13"]
[Round "2"]
[White "Schwan, Aaron"]
[Black "Ehrig, Leon Chris"]
[Result "0-1"]
[ECO "B44"]
[WhiteElo "1672"]
[BlackElo "1832"]
[Annotator "NA RC COMBH"]
[PlyCount "48"]
[EventDate "2022.08.12"]
[EventType "team-tourn"]
[EventRounds "7"]
[EventCountry "GER"]
[SourceTitle "playchess.com"]
[Source "ChessBase"]
[SourceQuality "1"]
[TimeControl "40/5400+30:1800+30"]

1. e4 {[%emt 0:00:04]} c5 {[%emt 0:00:00]} 2. Nf3 {[%emt 0:00:12]} Nc6 {[%emt 0:00:00]} 3. d4 {[%emt 0:00:04]} cxd4 {[%emt 0:00:00]} 4. Nxd4 {[%emt 0:00:49]} e6 {[%emt 0:04:58]} 5. c4 {[%emt 0:00:32]} Nf6 {[%emt 0:00:58]} 6. Nc3 {[%emt 0:01:27]} Bb4 {[%emt 0:08:23]} 7. Qd3 {[%emt 0:21:54]} Qa5 {[%emt 0:02:29]} 8. Bd2 {[%emt 0:06:31]} O-O {[%emt 0:02:17]} 9. Be2 {[%emt 0:12:08]} d5 {[%emt 0:02:13]} 10. cxd5 {[%emt 0:00:46]} exd5 {[%emt 0:05:51]} 11. Nxc6 {[%emt 0:00:47]} bxc6 {[%emt 0:03:49]} 12. e5 {[%emt 0:02:27]} Nd7 {[%emt 0:04:45]} 13. f4 {[%emt 0:04:06]} Nc5 {[%emt 0:01:00]} 14. Qc2 {[%emt 0:02:52]} d4 {[%emt 0:01:06]} 15. Nb1 {[%emt 0:02:24]} d3 {[%emt 0:03:55]} 16. Bxd3 {[%emt 0:01:07]} Nxd3+ {[%emt 0:00:02]} 17. Qxd3 {[%emt 0:03:24]} Ba6 {[%emt 0:02:41]} 18. Bxb4 {[%emt 0:00:28]} Qxb4+ {[%emt 0:00:01]} 19. Qd2 {[%emt 0:00:16]} Qe4+ {[%emt 0:00:28]} 20. Kf2 {[%emt 0:00:32]} Rad8 {[%emt 0:06:59]} 21. Qc1 {[%emt 0:00:14]} Qe2+ {[%emt 0:00:04]} 22. Kg3 {[%emt 0:00:50]} Rd3+ {[%emt 0:00:09]} 23. Kh4 {[%emt 0:01:34]} Bc8 {[%emt 0:02:23]} 24. h3 {[%emt 0:00:23]} Qf2+ {[%emt 0:00:12]} 0-1